bitfinex/quotes_SOLUSD_20251212
["timestamp","ask_amount","ask_price","bid_price","bid_amount"]
[1765539269832,0.67,138.48,138.46,0.69]
[1765539270651,110.89096712,138.49,138.46,0.69]
[1765539270827,103.0,138.49,138.46,5.07118535]
[1765539271152,103.0,138.49,138.47,11.60296624]
[1765539271355,103.0,138.49,138.47,33.97161638]
[1765539271528,103.0,138.49,138.48,0.69]
[1765539271731,7.88992468,138.51,138.48,0.69]
[1765539271951,118.78939365,138.52,138.48,5.07118535]
[1765539272154,52.10470744,138.55,138.49,4.38118535]
[1765539272326,0.67,138.52,138.49,26.74670285]
[1765539273249,0.67,138.52,138.49,33.96717332]
[1765539274050,7.88836914,138.54,138.5,5.07118535]
[1765539274357,7.88836914,138.54,138.5,12.29013058]
[1765539274532,7.88836914,138.54,138.51,0.69]
[1765539275040,0.67,138.53,138.51,0.69]
[1765539276141,7.21836914,138.54,138.51,0.69]
[1765539276445,7.88836914,138.54,138.51,0.69]
[1765539277253,7.31781985,138.55,138.51,7.90966597]
[1765539277440,110.98781985,138.55,138.51,12.29085132]
[1765539277635,110.98781985,138.55,138.52,5.07118535]
[1765539277636,0.1,138.55,138.52,5.07118535]
[1765539277854,0.1,138.55,138.53,4.38118535]
[1765539278152,0.1,138.55,138.54,0.69]
[1765539278456,0.1,138.55,138.53,12.29085132]
[1765539278951,0.1,138.55,138.54,0.69]
[1765539279831,0.1,138.55,138.54,7.90813194]
[1765539280050,0.1,138.55,138.54,12.28931729]
[1765539280250,0.1,138.55,138.54,7.90813194]
[1765539280759,0.77,138.55,138.52,8.59]
[1765539280970,5.15118535,138.55,138.52,7.88676599]
[1765539281154,7.21813194,138.54,138.5,8.59]
[1765539281464,12.26931729,138.54,138.49,20.9470912]
[1765539281753,0.67,138.53,138.49,28.16770804]
[1765539281961,0.67,138.53,138.5,0.69]
[1765539282760,0.67,138.53,138.49,28.16770804]
[1765539283059,0.67,138.53,138.49,28.85770804]
[1765539283361,7.88894859,138.53,138.49,28.16770804]
[1765539283563,7.88894859,138.53,138.49,28.85770804]
[1765539283734,0.67,138.52,138.49,28.85770804]
[1765539286458,0.67,138.52,138.49,15.81061684]
[1765539287457,2.80316116,138.51,138.47,0.67]
[1765539287662,0.68,138.5,138.47,0.67]
[1765539287832,0.68,138.5,138.46,8.57]
[1765539288036,0.68,138.5,138.47,7.22146201]
[1765539288233,0.68,138.5,138.47,7.89146201]
[1765539288654,0.68,138.5,138.47,7.22146201]
[1765539289440,8.58,138.52,138.48,0.67]
[1765539289649,8.58,138.52,138.48,3.47316116]
[1765539289935,0.68,138.51,138.48,3.47316116]
[1765539290768,0.68,138.51,138.48,7.89083923]
[1765539293870,10.70302183,138.51,138.46,0.67]
[1765539294172,3.48316116,138.5,138.46,7.89201205]
[1765539294343,0.68,138.49,138.46,7.89201205]
[1765539299059,7.90078202,138.49,138.46,7.22201205]
[1765539299567,0.68,138.48,138.46,7.22201205]
[1765539300286,31.77446971,138.53,138.47,3.47316116]
[1765539300579,0.14216157,138.54,138.5,2.80316116]
[1765539300580,15.11821441,138.54,138.5,2.80316116]
[1765539300788,7.9,138.54,138.5,2.80316116]
[1765539301113,8.58,138.54,138.51,0.67]
[1765539301384,0.68,138.53,138.5,2.80316116]
[1765539301581,0.68,138.53,138.5,3.47316116]
[1765539302381,0.68,138.53,138.5,7.88995404]
[1765539302583,0.68,138.53,138.5,10.6931152]
[1765539306471,10.70193255,138.53,138.48,7.2208869]
[1765539306786,2.80316116,138.52,138.47,15.12154287]
[1765539306992,7.21969532,138.51,138.47,15.12154287]
[1765539307160,7.89969532,138.51,138.47,15.79154287]
[1765539307362,0.68,138.5,138.47,7.89154287]
[1765539308063,110.21931072,138.52,138.48,3.47316116]
[1765539308299,110.89931072,138.52,138.48,3.47316116]
[1765539308799,110.89931072,138.52,138.49,0.67]
[1765539309282,103.68,138.52,138.49,7.89054199]
[1765539315769,0.68,138.51,138.48,0.67]
[1765539316569,3.48390736,138.51,138.47,7.22155093]
[1765539316787,2.80390736,138.5,138.46,7.89214459]
[1765539316986,7.90064433,138.5,138.46,7.89214459]
[1765539317184,0.68,138.49,138.46,7.89214459]
[1765539317384,0.68,138.49,138.46,7.22214459]
[1765539318095,7.90078875,138.49,138.46,7.22214459]
[1765539318310,10.70469611,138.49,138.44,0.7]
[1765539318484,0.68,138.48,138.45,7.2226665]
[1765539318991,0.68,138.48,138.45,7.9226665]
[1765539319677,10.70530096,138.48,138.44,7.2232622]
[1765539319982,10.70530096,138.48,138.44,7.9232622]
[1765539320184,0.68,138.47,138.44,7.9232622]
[1765539320692,0.68,138.47,138.43,15.12374047]
[1765539320898,3.48390736,138.47,138.43,15.82374047]
[1765539321081,3.48390736,138.47,138.43,7.92374047]
[1765539321082,0.68,138.47,138.43,7.92374047]
[1765539321282,0.68,138.47,138.43,7.22374047]
[1765539321597,7.90196682,138.47,138.44,0.7]
[1765539323990,0.68,138.46,138.44,0.7]
[1765539324996,7.90196682,138.47,138.44,0.7]
[1765539326101,7.90196682,138.47,138.44,7.92329217]
[1765539326300,7.22196682,138.47,138.44,7.92329217]
[1765539326491,0.68,138.46,138.44,7.92329217]
[1765539326996,110.90130979,138.48,138.44,7.22329217]
[1765539327295,0.68,138.52,138.47,15.85099856]
[1765539327499,7.89865299,138.53,138.49,2.80390736]
[1765539327901,0.68,138.52,138.49,3.50390736]
[1765539328105,7.89918128,138.52,138.49,3.50390736]
[1765539328315,28.75102395,138.52,138.47,20.9470912]
[1765539328484,28.75102395,138.52,138.47,20.96879774]
[1765539328485,0.96432314,138.51,138.47,20.96879774]
[1765539328679,0.68,138.51,138.47,20.96879774]
[1765539328897,0.68,138.5,138.47,20.96879774]
[1765539329105,0.68,138.5,138.47,23.7727051]
[1765539330814,0.68,138.5,138.47,20.96879774]
[1765539331127,0.68,138.5,138.45,15.84255134]
[1765539331128,10.70413417,138.5,138.45,15.84255134]
[1765539331505,0.68,138.49,138.45,15.84255134]
[1765539332589,7.90086056,138.49,138.45,18.6464587]
[1765539332981,0.68,138.48,138.45,18.6464587]
[1765539333680,0.68,138.48,138.45,10.7264587]
[1765539335520,0.68,138.48,138.45,7.92255134]
[1765539336605,7.90143772,138.48,138.45,0.7]
[1765539336806,7.90143772,138.48,138.44,20.27020123]
[1765539337017,0.68,138.47,138.44,20.27020123]
[1765539337314,0.68,138.47,138.44,7.22311003]
[1765539337494,0.68,138.47,138.44,7.92311003]
[1765539337814,7.90178309,138.47,138.44,7.22311003]
[1765539338017,0.68,138.46,138.44,7.22311003]
[1765539341197,7.90178309,138.47,138.44,7.92311003]
[1765539342717,3.48390736,138.46,138.42,7.22411248]
[1765539342899,0.68,138.46,138.43,0.7]
[1765539343099,7.90178309,138.47,138.43,3.50390736]
[1765539343297,7.22178309,138.47,138.43,3.50390736]
[1765539343502,7.90178309,138.47,138.44,0.7]
[1765539344514,7.90178309,138.47,138.44,7.9233286]
[1765539345015,7.22125938,138.48,138.44,7.9233286]
[1765539345318,7.90125938,138.48,138.45,0.7]
[1765539345505,0.68,138.47,138.45,0.7]
[1765539346134,7.90178352,138.47,138.45,0.7]
[1765539347509,7.22145797,138.48,138.45,0.7]
[1765539347700,7.90145797,138.48,138.45,0.7]
[1765539349325,0.68,138.47,138.45,0.7]
[1765539351511,7.90145797,138.48,138.45,0.7]
[1765539353721,0.68,138.47,138.44,7.9033286]
[1765539355128,0.68,138.47,138.45,0.68]
[1765539356921,7.90145797,138.48,138.45,0.68]
[1765539357528,0.68,138.47,138.45,0.68]
[1765539359427,15.12082199,138.49,138.45,7.90252004]
[1765539359626,0.68,138.48,138.45,0.68]
[1765539359933,4.38298722,138.47,138.42,7.90402199]
[1765539360130,4.38298722,138.47,138.42,0.68]
[1765539360322,4.38298722,138.45,138.41,28.8718081]
[1765539360706,0.68,138.45,138.42,7.90431393]
[1765539361027,5.06298722,138.45,138.42,7.90431393]
[1765539361417,0.68,138.44,138.42,7.90431393]
[1765539361820,4.38298722,138.45,138.42,7.90431393]
[1765539361821,5.06298722,138.45,138.42,7.90431393]
[1765539363142,0.68,138.45,138.42,7.22431393]
[1765539363315,0.68,138.45,138.43,0.68]
[1765539363841,103.0,138.48,138.43,12.2867626]
[1765539364142,103.68,138.48,138.43,7.90377538]
[1765539364329,0.68,138.47,138.44,5.06298722]
[1765539364636,0.68,138.47,138.44,0.68]
[1765539365141,0.68,138.47,138.44,7.90329857]
[1765539365510,0.68,138.47,138.44,7.22329857]
[1765539365741,0.68,138.47,138.44,7.90329857]
[1765539366561,110.22167318,138.48,138.45,0.68]
[1765539366741,110.90167318,138.48,138.45,0.68]
[1765539369227,0.68,138.47,138.45,0.68]
[1765539372628,103.0,138.51,138.46,4.38298722]
[1765539372830,103.0,138.51,138.47,4.38298722]
[1765539373018,103.68,138.51,138.47,4.38298722]
[1765539373219,5.06298722,138.5,138.46,0.68]
[1765539373524,11.60372517,138.49,138.45,7.90267435]
[1765539373720,12.28372517,138.49,138.45,7.90267435]
[1765539373924,0.68,138.48,138.45,7.90267435]
[1765539376329,7.22073795,138.49,138.46,0.68]
[1765539376527,0.68,138.48,138.45,7.90267435]
[1765539377209,0.68,138.48,138.45,7.22267435]
[1765539377518,0.68,138.48,138.45,7.88267435]
[1765539378937,7.90131807,138.48,138.45,7.88267435]
[1765539379143,7.90131807,138.48,138.44,7.223095]
[1765539379144,12.28430529,138.48,138.44,7.223095]
[1765539379340,0.71,138.47,138.44,7.883095]
[1765539380423,0.71,138.47,138.45,0.66]
[1765539383456,7.93131807,138.48,138.45,7.88272651]
[1765539387457,7.93131807,138.48,138.46,0.66]
[1765539388837,0.71,138.48,138.46,7.88228121]
[1765539389166,103.0,138.49,138.46,7.88228121]
[1765539389462,103.0,138.49,138.47,0.66]
[1765539390564,103.71,138.49,138.47,0.66]
[1765539390765,0.71,138.48,138.45,15.80273266]
[1765539392952,103.0,138.49,138.46,7.88225366]
[1765539393154,103.0,138.49,138.46,12.26560956]
[1765539393358,103.0,138.49,138.47,0.66]
[1765539394056,0.71,138.48,138.45,15.14259935]
[1765539394266,0.71,138.48,138.45,7.88259935]
[1765539394976,0.71,138.48,138.44,7.22334585]
[1765539395465,0.71,138.48,138.45,0.66]
[1765539395857,0.71,138.48,138.44,7.88334585]
[1765539396380,0.71,138.48,138.45,0.66]
[1765539397185,0.71,138.48,138.45,7.8826134]
[1765539397675,0.71,138.48,138.45,7.2226134]
[1765539398382,0.71,138.48,138.45,7.8826134]
[1765539400483,0.71,138.48,138.45,7.2226134]
[1765539402372,7.93137885,138.48,138.44,7.88312491]
[1765539402781,0.71,138.47,138.44,7.88312491]
[1765539403167,0.71,138.47,138.44,7.22312491]
[1765539403582,0.71,138.47,138.44,7.88312491]
[1765539406365,7.93181993,138.47,138.44,0.66]
[1765539406560,4.3833559,138.46,138.42,7.88408809]
[1765539406774,5.0933559,138.46,138.42,7.88408809]
[1765539406987,0.71,138.45,138.42,7.88408809]
[1765539407389,0.71,138.45,138.42,0.66]
[1765539407692,5.0933559,138.45,138.41,7.22478741]
[1765539407992,3.51667603,138.45,138.41,7.93478741]
[1765539408167,0.66,138.44,138.41,7.93478741]
[1765539411612,0.66,138.44,138.41,7.22478741]
[1765539411784,10.69011847,138.44,138.41,7.22478741]
[1765539412214,0.66,138.43,138.41,7.22478741]
[1765539412492,0.66,138.43,138.41,7.93478741]
[1765539413483,10.02972605,138.45,138.41,7.93478741]
[1765539413683,0.66,138.44,138.42,0.71]
[1765539414000,7.88305002,138.45,138.42,0.71]
[1765539414512,0.66,138.44,138.42,0.71]
[1765539417089,7.88305002,138.45,138.42,0.71]
[1765539419490,0.66,138.48,138.43,2.8062843]
[1765539419690,0.66,138.48,138.44,0.71]
[1765539420409,7.88151309,138.48,138.44,7.93305945]
[1765539420786,0.66,138.47,138.44,7.22305945]
[1765539421237,0.66,138.47,138.45,0.71]
[1765539424310,2.8062843,138.46,138.42,0.71]
[1765539424713,0.66,138.45,138.42,0.71]
[1765539425010,3.4662843,138.45,138.42,0.71]
[1765539425201,3.4662843,138.45,138.41,7.93481604]
[1765539425406,0.66,138.44,138.41,7.93481604]
[1765539425802,7.88338198,138.44,138.41,7.93481604]
[1765539425996,7.88338198,138.44,138.41,0.71]
[1765539426199,3.4662843,138.43,138.39,20.98279842]
[1765539426407,3.4662843,138.43,138.39,7.93570722]
[1765539426617,0.66,138.42,138.39,7.93570722]
[1765539427311,3.4662843,138.42,138.39,7.93584353]
[1765539427720,0.66,138.41,138.39,7.93584353]
[1765539428417,7.88411044,138.43,138.4,0.71]
[1765539429813,0.66,138.42,138.4,0.71]
[1765539429993,0.66,138.42,138.38,8.12]
[1765539430191,3.4662843,138.42,138.38,8.12]
[1765539430394,3.4662843,138.42,138.38,8.83]
[1765539430617,0.66,138.42,138.39,0.71]
[1765539431189,0.66,138.42,138.39,7.93564549]
[1765539433023,7.88454747,138.42,138.39,0.71]
[1765539434004,7.22454747,138.42,138.38,15.34623487]
[1765539434205,7.88510034,138.41,138.38,0.91]
[1765539434397,10.69138464,138.41,138.38,0.2]
[1765539434595,0.66,138.4,138.38,0.2]
[1765539441525,7.88552572,138.4,138.38,0.2]
[1765539445428,7.88552572,138.4,138.38,0.85]
[1765539445928,7.22552572,138.4,138.38,0.2]
[1765539446137,0.66,138.39,138.38,0.2]
[1765539446304,7.88595563,138.39,138.38,0.2]
[1765539447302,7.22595563,138.39,138.38,0.2]
[1765539447818,7.88595563,138.39,138.38,0.2]
[1765539448010,7.22595563,138.39,138.38,0.2]
[1765539450032,10.69435828,138.4,138.38,0.2]
[1765539450232,0.66,138.39,138.38,0.2]
[1765539451014,7.88568514,138.4,138.38,0.2]
[1765539452431,28.79146342,138.41,138.38,8.07637143]
[1765539452432,15.14511259,138.41,138.38,8.07637143]
[1765539452620,103.0,138.42,138.38,10.88504457]
[1765539452811,103.0,138.42,138.39,0.65]
[1765539453218,110.22442577,138.42,138.39,0.65]
[1765539453412,0.66,138.41,138.38,0.2]
[1765539453726,0.66,138.41,138.39,0.65]
[1765539453924,7.88510397,138.41,138.38,0.85]
[1765539456938,10.03377711,138.41,138.38,0.85]
[1765539457119,0.66,138.4,138.38,0.85]
[1765539458437,7.88557541,138.4,138.38,0.85]
[1765539458635,10.69424855,138.4,138.38,0.2]
[1765539458935,0.66,138.39,138.38,0.2]
[1765539460540,7.88595563,138.39,138.38,0.2]
[1765539463220,7.22553261,138.4,138.38,0.85]
[1765539463418,103.94432314,138.42,138.38,3.65867314]
[1765539463419,103.0,138.42,138.38,3.65867314]
[1765539463650,103.66,138.42,138.39,0.65]
[1765539463826,2.80867314,138.4,138.38,0.2]
[1765539464350,0.66,138.39,138.38,0.2]
[1765539466135,7.88589282,138.4,138.38,0.2]
[1765539468759,7.22589282,138.4,138.38,0.2]
[1765539468937,0.71,138.39,138.38,0.2]
[1765539469428,110.93589282,138.4,138.38,0.2]
[1765539470959,103.0,138.4,138.39,0.69]
[1765539472256,15.14497871,138.41,138.39,0.69]
[1765539473140,7.92,138.41,138.39,0.69]
[1765539473816,7.93463582,138.42,138.39,0.69]
[1765539473948,15.85399485,138.43,138.39,7.91578221]
[1765539474152,0.71,138.42,138.4,0.69]
[1765539474458,0.71,138.42,138.38,7.42628765]
[1765539474651,0.71,138.42,138.39,0.69]
[1765539475173,7.22491149,138.41,138.39,0.69]
[1765539477555,0.71,138.42,138.39,0.69]
[1765539478380,5.09806654,138.42,138.39,0.69]
[1765539479376,7.22491149,138.41,138.39,0.69]
[1765539481363,7.93491149,138.41,138.38,0.89]
[1765539481888,5.097317,138.4,138.38,0.2]
[1765539482076,0.71,138.39,138.38,0.2]
[1765539482578,4.387317,138.4,138.38,0.2]
[1765539482801,5.097317,138.4,138.38,0.2]
[1765539484310,12.32322863,138.4,138.38,0.2]
[1765539486075,7.93591163,138.4,138.38,0.89]
[1765539487104,15.14509671,138.41,138.39,0.69]
[1765539487277,7.92,138.41,138.39,0.69]
[1765539489387,15.14527392,138.41,138.38,0.2]
[1765539489592,12.32289357,138.4,138.38,0.2]
[1765539492399,7.93557657,138.4,138.38,0.2]
[1765539492578,7.92,138.44,138.39,5.077317]
[1765539492784,7.92,138.44,138.41,4.387317]
[1765539493204,7.92,138.44,138.42,0.69]
[1765539494000,7.92,138.44,138.43,7.22386765]
[1765539505815,7.92,138.44,138.43,7.90386765]
[1765539506523,7.92,138.44,138.43,7.22386765]
[1765539509316,8.61,138.44,138.43,7.22386765]
[1765539515631,8.61,138.44,138.42,0.68]
[1765539515834,8.61,138.44,138.41,30.35068085]
[1765539516920,8.61,138.44,138.42,7.22426954]
[1765539518922,8.61,138.44,138.42,7.90426954]
[1765539521743,7.92,138.44,138.4,7.22543352]
[1765539522046,0.69,138.43,138.4,12.29020557]
[1765539522217,0.69,138.43,138.41,0.68]
[1765539523123,8.61,138.44,138.41,5.06477205]
[1765539523561,103.0,138.46,138.43,4.38477205]
[1765539523720,110.92,138.46,138.44,7.22334585]
[1765539523924,110.92,138.46,138.44,7.90334585]
[1765539525858,111.61,138.46,138.43,7.90386765]
[1765539526051,110.92,138.46,138.44,0.68]
[1765539526657,110.92,138.46,138.43,7.22386765]
[1765539526824,0.69,138.45,138.43,7.22386765]
[1765539527925,110.92,138.46,138.43,11.6086397]
[1765539528226,111.58,138.46,138.43,12.2786397]
[1765539529724,111.58,138.46,138.44,7.89287626]
[1765539529950,111.58,138.46,138.44,7.22287626]
[1765539530324,110.92,138.46,138.44,7.22287626]
[1765539530526,0.66,138.45,138.44,7.22287626]
[1765539530939,110.92,138.46,138.44,7.22287626]
[1765539531128,111.58,138.46,138.44,7.22287626]
[1765539533549,110.92,138.46,138.44,7.22287626]
[1765539533876,111.58,138.46,138.44,7.22287626]
[1765539540444,0.66,138.45,138.44,7.22287626]
[1765539541564,0.94432314,138.45,138.4,34.5852668]
[1765539541736,0.94432314,138.45,138.41,0.67]
[1765539541737,7.92,138.44,138.41,0.67]
[1765539542060,8.58,138.44,138.42,7.22429115]
[1765539542937,7.92,138.44,138.43,0.67]
[1765539543137,7.92,138.44,138.43,7.89386765]
[1765539543949,103.0,138.46,138.43,10.69936524]
[1765539544134,110.92,138.46,138.44,3.47549759]
[1765539544555,110.92,138.46,138.44,2.80549759]
[1765539544841,110.92,138.46,138.44,3.47549759]
[1765539545253,110.92,138.46,138.45,7.22282412]
[1765539549570,111.58,138.46,138.42,3.47506754]
[1765539549746,0.66,138.45,138.43,7.22342511]
[1765539551148,0.66,138.45,138.42,7.22417711]
[1765539551149,7.92,138.44,138.42,7.22417711]
[1765539551652,8.58,138.44,138.42,7.22417711]
[1765539556063,0.66,138.43,138.41,3.47506754]
[1765539556242,7.92,138.44,138.41,7.89466291]
[1765539556447,8.58,138.44,138.41,10.69973045]
[1765539556860,7.92,138.44,138.41,7.22466291]
[1765539557063,1.00432314,138.43,138.4,7.2252176]
[1765539557370,7.92,138.42,138.41,7.22491149]
[1765539557674,8.59,138.42,138.41,7.22491149]
[1765539558561,8.59,138.42,138.4,10.03024553]
[1765539559851,8.59,138.42,138.4,7.22517799]
[1765539560493,8.59,138.42,138.4,10.03024553]
[1765539560664,7.92,138.42,138.41,7.92491149]
[1765539561086,7.92,138.42,138.41,7.22491149]
[1765539561394,7.92,138.42,138.41,10.72997903]
[1765539561687,7.92,138.44,138.41,7.92491149]
[1765539561882,7.92,138.44,138.42,3.50506754]
[1765539562781,7.92,138.44,138.42,10.72902396]
[1765539563390,0.67,138.45,138.42,10.02902396]
[1765539563576,103.0,138.46,138.43,3.50506754]
[1765539563778,110.92,138.46,138.44,2.80506754]
[1765539564087,110.92,138.46,138.44,3.50506754]
[1765539564670,110.92,138.46,138.44,10.02804625]
[1765539564871,110.92,138.46,138.44,7.92297871]
[1765539565191,110.92,138.46,138.44,10.72804625]
[1765539565789,110.92,138.46,138.45,0.7]
[1765539566588,110.92,138.46,138.44,10.72804625]
[1765539566792,110.92,138.46,138.44,10.02804625]
[1765539566988,110.92,138.46,138.45,0.7]
[1765539567810,110.92,138.46,138.44,10.72804625]
[1765539568402,110.92,138.46,138.44,7.92297871]
[1765539570880,111.59,138.46,138.44,7.92297871]
[1765539571108,110.92,138.46,138.42,7.92438953]
[1765539571312,0.67,138.45,138.42,7.92438953]
[1765539572206,0.67,138.45,138.42,10.72945707]
[1765539576420,0.67,138.45,138.42,7.92438953]
[1765539579805,0.67,138.45,138.42,10.72945707]
[1765539580182,0.67,138.45,138.42,10.73026655]
[1765539580410,0.67,138.45,138.43,0.7]
[1765539581112,0.67,138.45,138.42,10.03026655]
[1765539581319,110.92,138.46,138.43,3.50587702]
[1765539581529,110.92,138.46,138.44,2.80587702]
[1765539581819,110.92,138.46,138.44,3.50587702]
[1765539583717,111.59,138.46,138.44,7.92303001]
[1765539584113,110.92,138.46,138.44,7.92303001]
[1765539584812,111.59,138.46,138.44,7.92303001]
[1765539587714,111.64,138.46,138.44,7.92303001]
[1765539588415,0.72,138.45,138.42,7.9041375]
[1765539589698,0.72,138.45,138.42,10.71001452]
[1765539591938,0.72,138.45,138.42,12.28825354]
[1765539592915,7.94304137,138.45,138.42,7.2241375]
[1765539593122,7.94304137,138.45,138.41,12.2888535]
[1765539593311,0.72,138.44,138.41,12.2888535]
[1765539593627,8.64,138.44,138.41,7.90473746]
[1765539593998,0.72,138.43,138.41,7.90473746]
[1765539595636,8.64,138.44,138.41,7.90473746]
[1765539595798,0.72,138.43,138.41,7.22473746]
[1765539595998,0.72,138.43,138.41,7.90473746]
[1765539598031,8.64,138.44,138.41,7.90473746]
[1765539598220,8.64,138.44,138.41,12.2888535]
[1765539599432,8.64,138.44,138.41,7.90473746]
[1765539600932,7.92,138.44,138.41,7.90473746]
[1765539601116,0.72,138.43,138.4,7.90530708]
[1765539601319,0.72,138.43,138.4,7.22530708]
[1765539601520,11.60850557,138.42,138.38,13.9270912]
[1765539601720,0.72,138.41,138.38,13.9270912]
[1765539601959,0.72,138.41,138.38,21.15332352]
[1765539602315,110.5083447,138.43,138.39,0.68]
[1765539602522,103.72,138.43,138.4,4.38411604]
[1765539603014,103.72,138.43,138.4,5.06411604]
[1765539603210,103.0,138.43,138.38,60.23070781]
[1765539603420,110.92,138.43,138.41,12.28872226]
[1765539603611,7.92,138.43,138.41,12.28872226]
[1765539603810,7.92,138.43,138.42,0.68]
[1765539604224,7.94295638,138.45,138.42,0.68]
[1765539604429,7.92,138.45,138.42,0.68]
[1765539605209,8.64,138.45,138.42,0.68]
[1765539605630,15.14291395,138.45,138.41,7.22460622]
[1765539605831,0.72,138.44,138.4,7.90534567]
[1765539606146,7.92,138.43,138.41,0.68]
[1765539606945,0.72,138.42,138.39,12.2898531]
[1765539607141,0.72,138.42,138.4,0.68]
[1765539607359,8.64,138.43,138.4,0.68]
[1765539607843,15.86396736,138.43,138.4,0.68]
[1765539608244,15.86396736,138.43,138.41,4.38411604]
[1765539608245,7.92,138.43,138.41,4.38411604]
[1765539608832,7.92,138.43,138.41,5.06411604]
[1765539609346,7.92,138.43,138.41,12.28872322]
[1765539611550,7.92,138.43,138.41,11.60872322]
[1765539611850,7.92,138.45,138.42,5.06411604]
[1765539612144,7.92,138.45,138.43,0.68]
[1765539612346,8.64,138.45,138.43,0.68]
[1765539612523,8.64,138.45,138.42,11.60807977]
[1765539612843,7.92,138.45,138.43,0.68]
[1765539613021,7.92,138.45,138.43,5.06411604]
[1765539613447,0.72,138.44,138.41,12.28879399]
[1765539613750,5.1051643,138.44,138.41,7.22467795]
[1765539613929,7.92,138.43,138.41,7.22467795]
[1765539614133,8.64,138.43,138.41,7.22467795]
[1765539616526,0.72,138.42,138.4,7.22521516]
[1765539618457,0.72,138.42,138.39,7.90576779]
[1765539618824,8.2288938,138.42,138.38,7.42626536]
[1765539619024,111.2288938,138.42,138.38,8.09626536]
[1765539619244,0.65,138.41,138.38,8.09626536]
[1765539619753,0.65,138.41,138.39,7.22590244]
[1765539620654,110.5088938,138.42,138.39,7.22590244]
[1765539620827,111.1588938,138.42,138.39,7.89590244]
[1765539621145,103.0,138.42,138.4,0.71]
[1765539621720,103.72,138.42,138.39,11.61106674]
[1765539621955,103.72,138.42,138.39,12.32106674]
[1765539623455,103.72,138.42,138.39,7.93590244]
[1765539623640,103.0,138.42,138.4,0.71]
[1765539624558,103.0,138.42,138.41,4.3851643]
[1765539624727,7.92,138.43,138.41,11.60967649]
[1765539624925,110.94306909,138.45,138.42,5.0951643]
[1765539624926,110.92,138.45,138.42,5.0951643]
[1765539625247,111.64,138.45,138.42,5.0951643]
[1765539625425,118.86291287,138.45,138.42,5.0951643]
[1765539626150,7.22211253,138.47,138.43,5.0951643]
[1765539626445,7.22211253,138.47,138.44,4.3851643]
[1765539626626,7.94211253,138.47,138.44,5.0951643]
[1765539627026,0.72,138.47,138.45,4.3851643]
[1765539627251,0.72,138.47,138.44,0.71]
[1765539627461,0.72,138.47,138.44,4.3851643]
[1765539628156,0.72,138.47,138.44,12.31839413]
[1765539629253,4.3851643,138.46,138.42,7.22397892]
[1765539629463,4.3851643,138.46,138.42,7.93397892]
[1765539629631,0.72,138.45,138.42,7.93397892]
[1765539630033,0.72,138.45,138.42,12.31914322]
[1765539635963,0.72,138.45,138.42,7.93397892]
[1765539636163,0.72,138.45,138.42,12.31914322]
[1765539636660,103.0,138.46,138.44,4.3851643]
[1765539637068,103.72,138.46,138.44,4.3851643]
[1765539637565,103.72,138.46,138.43,5.0951643]
[1765539637861,103.72,138.46,138.43,12.31870483]
[1765539639857,0.72,138.45,138.43,5.0951643]
[1765539640057,0.72,138.45,138.42,11.60929333]
[1765539640368,0.72,138.45,138.42,12.31929333]
[1765539640870,103.72,138.46,138.43,12.31899924]
[1765539641566,0.72,138.45,138.43,11.60899924]
[1765539641749,0.72,138.45,138.43,12.31899924]
[1765539642252,0.72,138.45,138.42,7.93418339]
[1765539642574,8.64,138.45,138.42,7.22418339]
[1765539643070,8.64,138.45,138.42,7.93418339]